Cogmind - Beta 17 @@@ ROGUE MODE // 2026.08.20 @ 13:19:30 Player: SovietPaperclip Result: Destroyed by D-53 Grenadier with Mini Grenade Launcher Performance ------------- Evolutions (0) 0 Regions Visited (2) 400 Robots Destroyed (11) 55 Value Destroyed (228) 228 Prototype IDs (0) 0 Alien Tech Used (0) 0 Bonus (0) 0 TOTAL SCORE: 683 Bonus ------- None Cogmind --------- Core Integrity 0/250 Matter 300/300 Energy 104/160 System Corruption 2% Temperature Cool (0) Movement Walking (190) Ox1 Location -10/Mines Parts ------- > --- POWER (1) -------- Light Nuclear Core > --- PROPULSION (2) --- Aluminum Leg Aluminum Leg > --- UTILITY (2) ------ Large Storage Unit > --- WEAPON (2) ------- Shotgun > --- INVENTORY (15) --- Fission Core Flexi-carbon Leg Wheel Huge Storage Unit Improved Terrain Scanner Light Assault Rifle Shotgun Bore Cannon Mace Peak State ------------ > --- POWER ------------ Light Nuclear Core > --- PROPULSION ------- Aluminum Leg Aluminum Leg > --- UTILITY ---------- Large Storage Unit Seismic Detector > --- WEAPON ----------- Shotgun Shotgun > --- INVENTORY -------- Fission Core Flexi-carbon Leg Wheel Huge Storage Unit Improved Terrain Scanner Light Assault Rifle Shotgun Bore Cannon Mace [Rating: 13] Favorites ----------- Power Ion Engine Engine Ion Engine Power Core Light Nuclear Core Propulsion Aluminum Leg Leg Aluminum Leg Utility Seismic Detector Device Seismic Detector Storage Small Storage Unit Weapon Shotgun Energy Gun Medium Laser Ballistic Gun Shotgun Impact Weapon Mace Build | -11 -10 -10 ------- Run | Yrd Mat Min Slots Evolved . | . . . Power . | . . . Propulsion . | . . . Utility . | . . . Weapon . | . . . Parts Attached 16 | 7 3 6 Power 2 | 1 . 1 Engine 1 | 1 . . Core 1 | . . 1 Reactor . | . . . Propulsion 4 | 2 . 2 Treads . | . . . Leg 4 | 2 . 2 Wheel . | . . . Hover . | . . . Flight . | . . . Utility 3 | 2 1 . Device 1 | 1 . . Storage 2 | 1 1 . Processor . | . . . Hackware . | . . . Protection . | . . . Artifact . | . . . Weapon 7 | 2 2 3 Energy Gun 1 | 1 . . Energy Cannon . | . . . Ballistic Gun 5 | 1 1 3 Ballistic Cannon . | . . . Launcher . | . . . Special Weapon . | . . . Impact Weapon 1 | . 1 . Slashing Weapon . | . . . Piercing Weapon . | . . . Special Melee Weapon . | . . . Unidentified Prototypes . | . . . Parts Lost 6 | . . 6 Power 1 | . . 1 Propulsion 2 | . . 2 Utility 1 | . . 1 Weapon 2 | . . 2 Highest Loss Streak 3 | . . 3 To Critical Strikes . | . . . Average Backups 6 | 1 4 8 Power . | . . 1 Propulsion 1 | . 1 1 Utility 1 | . 1 2 Weapon 2 | . 2 3 Tool/Special . | . . . Unused Backups 6 | . . 6 Power 1 | . . 1 Propulsion 2 | . . 2 Utility 2 | . . 2 Weapon 1 | . . 1 Tool/Special . | . . . Average Slot Usage (%) 98 | . 100 96 Engine 13 | . 14 12 Leg 26 | . 28 25 Device 14 | . 14 14 Storage 14 | . 14 14 Energy Gun 3 | . 6 . Ballistic Gun 21 | . 16 28 Impact Weapon 2 | . 4 . Peak Build Rating 13 | 7 10 13 Average Rating 8 | 5 8 10 On Entrance 5 | . 7 10 Avg Prop Armor Cover (%) . | . . . Naked Turns . | . . . Heaviest Build 32 | 14 31 32 Greatest Support 20 | 20 20 20 Greatest Overweight (x) 1 | . 1 1 Average Overweight (x) . | . . 1 Largest Inventory Capacity 15 | 8 15 15 Average Capacity 11 | 7 9 15 Most Carried 10 | 2 8 10 Average Carried 6 | 1 4 8 Final Capacity 15 | 8 15 15 Final Carried 9 | 2 7 9 Class Distribution -------------------- 97% | Mutant Dominant Class ---------------- Mutant | -10/Materials Mutant | -10/Mines Resources | -11 -10 -10 ----------- Run | Yrd Mat Min Matter Collected 721 | 170 158 393 Remotely . | . . . Salvage Created 493 | 122 50 321 Parts 23 | 8 8 7 Haulers Intercepted . | . . . Recyclers Shooed . | . . . Parts Field Recycled . | . . . Retrieved Matter . | . . . Parts Self-Destructed . | . . . Prevented . | . . . Parts Restored . | . . . Kills | -11 -10 -10 ------- Run | Yrd Mat Min Combat Hostiles Destroyed 22 | . 3 19 Guns 22 | . 3 19 Classes Destroyed 6 | 2 2 2 Tunneler 2 | 2 . . Recycler 1 | 1 . . Watcher 1 | . 1 . Swarmer 3 | . 3 . Grunt 4 | . . 4 Assembled 15 | . . 15 Best Kill Streak 15 | 3 3 15 Combat Bots Only 15 | . 3 15 Max Kills in Single Turn 2 | 1 1 2 Gunslinging 1 | . . 1 Exploded . | . . . Melee . | . . . Uniques/NPCs Destroyed . | . . . Combat | -11 -10 -10 -------- Run | Yrd Mat Min Hostile Shots Fired 72 | . 13 59 Missed 17 | . 3 14 Hits 55 | . 10 45 Melee 17 | . . 17 Projectile 38 | . 10 28 AOE 3 | . . 3 Critical Strikes 1 | . . 1 Damage Taken 1018 | . 81 937 Core 250 | . 23 227 Absorbed by Shields . | . . . Core Remaining (%) 100 | 100 . . Volleys Fired 68 | 13 15 40 Largest 2 | 2 2 2 Hottest 70 | 70 70 46 Shots Fired 137 | 26 31 80 Gun 137 | 26 31 80 Cannon . | . . . Launcher . | . . . Special . | . . . Kinetic 114 | 13 21 80 Thermal 23 | 13 10 . Explosive . | . . . Electromagnetic . | . . . Robot Hit Streak 8 | 3 5 8 Robot Miss Streak 7 | 3 6 7 Penetration Max . | . . . Secondary Targets 11 | . 1 10 Max Gunslinging Chain 1 | . 1 1 Shots Hit Robots 91 | 16 15 60 Core Hits 55 | 6 7 42 Critical Kills . | . . . Critical Parts Destroyed 1 | 1 . . Critical Strikes 2 | 2 . . Burn 1 | 1 . . Destroy 1 | 1 . . Melee Attacks 1 | . 1 . Impact 1 | . 1 . Slashing . | . . . Piercing . | . . . Sneak Attacks . | . . . Combat Hostiles . | . . . Follow-up Attacks . | . . . Damage Inflicted 1201 | 164 166 871 Guns 1201 | 164 166 871 Cannons . | . . . Explosions . | . . . Melee . | . . . Ramming . | . . . Kinetic 1038 | 78 89 871 Thermal 163 | 86 77 . Explosive . | . . . Electromagnetic . | . . . Impact . | . . . Slashing . | . . . Piercing . | . . . Highest Corruption 2 | . 2 2 Average Corruption 2 | . 2 2 Corruption Purged . | . . . Corruption Blocked . | . . . Effects 13 | . 6 7 Message Errors 3 | . 1 2 Matter Fused 2 | . 2 . Energy Discharges 4 | . 2 2 Data Loss (minor) 2 | . . 2 Misfires 1 | . 1 . Alerts 1 | . . 1 Overload Shots . | . . . Overflow Damage . | . . . Projectiles . | . . . Explosions . | . . . Melee . | . . . Knockbacks . | . . . Impact . | . . . Kinetic . | . . . Secondary . | . . . Self-Inflicted Damage . | . . . Shots . | . . . Rammed . | . . . Targets Rammed . | . . . Kicked . | . . . Crushed . | . . . Highest Temperature 60 | 60 60 25 Average Temperature 19 | 24 19 9 Received Heat Transfer 174 | . . 174 Siege Activations . | . . . Martial Activations . | . . . Shielding Activations . | . . . Robots Disrupted . | . . . Combat Hostiles . | . . . Robots Corrupted . | . . . Combat Hostiles . | . . . Parts Fried . | . . . Impact Corruptions . | . . . Robots Melted . | . . . Combat Hostiles . | . . . Parts Melted . | . . . Heat Transferred 555 | 333 222 . Parts Sabotaged . | . . . Parts Stolen . | . . . Parts Stripped . | . . . Power Chain Reactions . | . . . Alert | -11 -10 -10 ------- Run | Yrd Mat Min Maximum Alert Level . | . . . Low Security (%) 100 | 100 100 100 Level 1 . | . . . Level 2 . | . . . Level 3 . | . . . Level 4 . | . . . Level 5 . | . . . High Security . | . . . Max Security . | . . . Peak Influence 70 | 10 70 56 Initial . | . . . Average 7 | 1 8 8 Influence Increases 223 | 15 78 130 Destroy 0b10 Robot/C 140 | . 60 80 Destroy 0b10 Robot/NC 20 | 15 5 . Destroy Leader 32 | . 12 20 Destroy Structure 1 | . 1 . Lose Combat Pursuer 30 | . . 30 Influence Decreases 187 | 15 78 94 Time Decay 167 | 15 78 74 Lost Part 20 | . . 20 Squads Dispatched . | . . . Investigation . | . . . Extermination . | . . . Reinforcement . | . . . Assault . | . . . Garrison . | . . . Intercept . | . . . Searches Triggered . | . . . Construction Impeded . | . . . Haulers Reinforced . | . . . Active Scanning Responses . | . . . Cargo Convoy Interrupts . | . . . Stealth | -11 -10 -10 --------- Run | Yrd Mat Min Distress Signals 1 | . 1 . Communications Jammed . | . . . Distress Signals . | . . . Times Spotted 29 | . 6 23 Peak Tracking Total 15 | . 4 15 Tactical Retreats 2 | . . 2 Traps | -11 -10 -10 ------- Run | Yrd Mat Min Traps Triggered 1 | . 1 . Indirectly . | . . . Trap Hack Attempts . | . . . Triggered . | . . . Disarmed . | . . . Reprogrammed . | . . . Reused . | . . . Traps Extracted . | . . . Installed . | . . . Triggered . | . . . Machines | -11 -10 -10 ---------- Run | Yrd Mat Min Machines Disabled . | . . . Max in Single Turn . | . . . Machines Repaired . | . . . Machines Dismantled . | . . . Machines Sabotaged . | . . . Overloaded Fab Kills . | . . . Hacking | -11 -10 -10 --------- Run | Yrd Mat Min Machines Accessed 3 | . 3 . Terminals 3 | . 3 . Fabricators . | . . . Repair Stations . | . . . Recycling Units . | . . . Scanalyzers . | . . . Garrison Access . | . . . Total Hacks 8 | . 8 . Successful 1 | . 1 . Failed 7 | . 7 . Catastrophic 1 | . 1 . Database Lockouts . | . . . Manual 4 | . 4 . Terminals 8 | . 8 . Fabricators . | . . . Repair Stations . | . . . Recycling Units . | . . . Scanalyzers . | . . . Garrison Access . | . . . Terminal Hacks 1 | . 1 . Robot Analysis 1 | . 1 . Fabricator Hacks . | . . . Repair Station Hacks . | . . . Recycling Unit Hacks . | . . . Scanalyzer . | . . . Garrison Access Hacks . | . . . Unauthorized Hacks . | . . . Terminals . | . . . Fabricators . | . . . Repair Stations . | . . . Recycling Units . | . . . Scanalyzers . | . . . Garrison Access . | . . . Data Cores Recovered . | . . . Used . | . . . Hacking Detections 3 | . 3 . Full Trace Events . | . . . Feedback Events . | . . . Feedback Blocked . | . . . Robot Schematics Acquired . | . . . Robots Built . | . . . Authchips . | . . . Time . | . . . Total Robot Build Rating . | . . . Part Schematics Acquired . | . . . Parts Built . | . . . Authchips . | . . . Time . | . . . Total Part Build Rating . | . . . Part Studies Acquired . | . . . Parts Repaired . | . . . Time . | . . . Parts Recycled . | . . . Recycled Matter . | . . . Retrieved Matter . | . . . Retrieved Components . | . . . Parts Scanalyzed . | . . . Part Schematics Acquired . | . . . Parts Damaged . | . . . Bothacking | -11 -10 -10 ------------ Run | Yrd Mat Min Used RIF Installer . | . . . Robots Hacked . | . . . Non-combat . | . . . Combat . | . . . Robot Hacks Applied . | . . . Relay Couplers Released . | . . . Fabnet Peak Effective % . | . . . Robots Rewired . | . . . Allies Hacked . | . . . Hacks Repelled . | . . . Allies | -11 -10 -10 -------- Run | Yrd Mat Min Total Allies . | . . . Largest Group . | . . . Highest-Rated Group . | . . . Highest-Rated Ally . | . . . Total Orders . | . . . Ally Attacks . | . . . Total Damage . | . . . Kills . | . . . Allies Corrupted . | . . . Allies Melted . | . . . Intel | -11 -10 -10 ------- Run | Yrd Mat Min Active Infowar (turns) 1101 | 7 591 503 Seismic 1101 | 7 591 503 Robot Analysis Total 1 | . 1 . Derelict Logs Recovered 1 | . . 1 Drone Launches . | . . . Drone Recoveries . | . . . Exploration | -11 -10 -10 ------------- Run | Yrd Mat Min Turns Passed 1204 | 110 591 503 Spaces Moved 649 | 53 414 182 Core 4 | 4 . . Treads . | . . . Legs 645 | 49 414 182 Wheels . | . . . Hover . | . . . Flight . | . . . Fastest Speed 50 | 50 120 190 Average Speed 144 | 114 127 190 Slowest Speed 190 | 120 190 190 Overloaded Moves . | . . . Propulsion Burnouts . | . . . Robots Hopped . | . . . Potential Cave-ins . | . . . Cave-ins Triggered . | . . . Exploration Rate (%) 36 | 4 62 43 Regions Visited 2 Branch Regions 1 Pre-discovered Areas . | . . . Known Exits Taken . | . . . Unknown Exits Taken 2 | 1 1 . Scrap Searched 1 | . . 1 Spaces Dug 1 | . 1 . Terrain Destroyed 1 | . 1 . Melee 1 | . 1 . Projectile . | . . . AOE . | . . . Terrain Rammed . | . . . Walls Destroyed . | . . . Machines Disabled . | . . . Actions | -11 -10 -10 --------- Run | Yrd Mat Min Total 781 | 75 447 259 Wait 32 | 1 7 24 Move 647 | 52 413 182 Hop . | . . . Pick Up 15 | 2 6 7 Fast Attach 7 | 7 . . Attach 6 | . 1 5 Detach . | . . . Swap 3 | . 2 1 Drop 2 | . 2 . Fire 68 | 13 15 40 Melee 1 | . 1 . Ram . | . . . Kick . | . . . Crush . | . . . Escape Stasis . | . . . Rewire . | . . . Trap . | . . . Miscellaneous . | . . . Route ------- -11/Scrapyard -10/Materials (discovered 3 exits: [*Mat x2] / [*Min]) -10/Mines History --------- Turn | Location | Event 9 | -11/Scrapyard | Discovered new exit (range 16) 111 | -11/Scrapyard | Entered Materials 289 | -10/Materials | Discovered new exit (range 7) 315 | -10/Materials | Build established: Mutant 529 | -10/Materials | Discovered new exit (range 13) 601 | -10/Materials | Discovered new exit (range 10) 702 | -10/Materials | Entered Mines 866 | -10/Mines | Assembled infested the area 871 | -10/Mines | Assisted by a Guerilla fighting off Assembled 935 | -10/Mines | Core integrity fell below 50% 956 | -10/Mines | Core integrity fell below 20% 983 | -10/Mines | Lost 3 parts (2n1w) 1009 | -10/Mines | Destroyed 15 combat bots 1077 | -10/Mines | Learned Materials non-interactive machine intel 1205 | -10/Mines | Destroyed by D-53 Grenadier with Mini Grenade Launcher Last Messages --------------- 01102_ K-01 Serf collects debris. 01136_ System corrupted: IFF burst signal emitted. 01146_ Ion Engine destroyed. 01150_ G-47 Trooper destroyed. 01150_ Switching to secondary target: G-34 Mercenary. 01153_ G-34 Mercenary destroyed. 01156_ Acquired 27 matter. 01164_ Searching scrap... 01164_ Found EM Pulse Gun. 01164_ Found Sml. Matter Pod. 01164_ Found 47 Matter. 01164_ Found Structural Scanner. 01164_ Found 43 Matter. 01180_ Acquired 10 matter. 01202_ T-07 Excavator destroyed. 01205_ System corrupted: Energy discharge (-56). 01205_ Shotgun destroyed. 01205_ Seismic Detector destroyed. Map ----- +----------------------------------------------------+ | | | | | | | | | | | | | | | | | | | | | ?????????????????????????????????????????????????? | | ?????????????????????????????????????????????????? | | ?????????????????????????????#####???????????????? | | ????????????????????????????## ##??????????????? | | ?????????????????????????#### #??????????##### | | ?????????????????????##### #????####### # | | ?????????????????????# #????# | | ?????????????????????# ##???# | | ??????????????????????# ###?# ### # | | ??????????????????###### ### #?# ## | | ?????????????????## ## #?# ### | | ?????????????????# %! ####? #?### | | ????????????????## = ##??? ???# | | ???????????????## % #??! ???# | | ???????????????# ??# | | ???????????????# =%d @ ## | | ???????????????##%=d #### #?# | | ????????????????#!!## #??# #?? | | ?????????#??????# ### #?? #?? | | ?????????# #####[!#?# #?? ##?? | | ????????## %%#?## ##?? ##??? | | ????????# ! #??### ###?? % ##???? | | ??# ######????#####???? #????? | | ??#### ??????????????????? ????? | | ?????## #???????????????????# ????? | | ??????## ?????????????????????## ??????? | | ???????## ???????????????????????#??? ????????? | | ????????# ?????????????????????????????????????? | | ????????# ?????????????????????????????????????? | | ???????? ?????????????????????????????????????? | | ???????# ??????????????????????????????????????? | | ???????# ??????????????????????????????????????? | | ???????## ???????????????????????????????????????? | | ????????# ???????????????????????????????????????? | | ?????????????????????????????????????????????????? | | ?????????????????????????????????????????????????? | | ?????????????????????????????????????????????????? | | ?????????????????????????????????????????????????? | | ?????????????????????????????????????????????????? | | ?????????????????????????????????????????????????? | +----------------------------------------------------+ Best States ------------- Heat Dissipation 25 Energy Generation 14 Energy Capacity 250 Matter Stores 300 Matter Capacity 300 Sight Range 16 Terrain Scan Density 10 Evasion (%) 55 Item Schematics ----------------- None Robot Schematics ------------------ None Fabricated ------------ Nothing Repaired ---------- Nothing Studied --------- None Alien Tech Used ----------------- None Achievements -------------- None Challenges ------------ None Game ------ Seed ReflexGravmagDevice Manual? 0 Play Time 00:08:30 Cumulative 168.6 hours Start 2026.08.19 @ 18:53:45 End 2026.08.20 @ 13:19:30 Sessions 2 Manual Loads 0 Difficulty Rogue Special Mode None Game No. 262 Rogue 262 Adventurer 0 Explorer 0 Win Type - Total 1 Types 1/0/0/0/0/0/0/0/0/0 Lore% 59 Gallery% 53 Achievement% 36 Wizard Run 0 Options --------- Layout 1 ASCII 0 Keyboard 0 Movement Arrows Keybinds 0 Fullscreen 2 Font 32/Smallcaps Map View 50x40 Zoom Use 0% Tactical HUD 1 Map Filters NONE Filters NONE Steam 1 RUN: 55cbfbe3-532a-4274-9072-561949e7fa73